[Event "Late-Titled-Tuesday-Blitz-March-26-2024"]
[Site "Chess.com"]
[Date "2024.03.26"]
[Round "10"]
[White "frequentblunders"]
[Black "egnfanclub"]
[Result "0-1"]
[WhiteElo "2204"]
[BlackElo "2371"]
[TimeControl "180+1"]
[EndTime "15:54:47 PDT"]
[Termination "egnfanclub won by checkmate"]

1. e3 {[%clk 0:03:00.5]} 1... e5 {[%clk 0:02:59.6]} 2. c4 {[%clk 0:03:01.4]}
2... c5 {[%clk 0:02:59.3]} 3. Nc3 {[%clk 0:03:02.3]} 3... Nc6 {[%clk 0:02:59.4]}
4. Nf3 {[%clk 0:03:02]} 4... Nf6 {[%clk 0:02:58.9]} 5. d4 {[%clk 0:03:00.9]}
5... exd4 {[%clk 0:02:54.4]} 6. exd4 {[%clk 0:03:01.7]} 6... d5 {[%clk
0:02:53.2]} 7. cxd5 {[%clk 0:02:52.9]} 7... Nxd5 {[%clk 0:02:47.6]} 8. Bc4
{[%clk 0:02:51.6]} 8... Nxc3 {[%clk 0:02:47.7]} 9. bxc3 {[%clk 0:02:51.6]} 9...
Be7 {[%clk 0:02:42.9]} 10. O-O {[%clk 0:02:51]} 10... O-O {[%clk 0:02:42.5]} 11.
h3 {[%clk 0:02:40.5]} 11... cxd4 {[%clk 0:02:35.1]} 12. cxd4 {[%clk 0:02:41.4]}
12... Bf6 {[%clk 0:02:34.8]} 13. Be3 {[%clk 0:02:32.6]} 13... Na5 {[%clk
0:02:27.8]} 14. Bd3 {[%clk 0:02:20.2]} 14... Be6 {[%clk 0:02:22.4]} 15. Qa4
{[%clk 0:02:10.3]} 15... Bd5 {[%clk 0:01:52.3]} 16. Ne5 {[%clk 0:02:00.3]} 16...
Nc6 {[%clk 0:01:32]} 17. Rad1 {[%clk 0:01:47.8]} 17... Qc7 {[%clk 0:00:56.4]}
18. f4 {[%clk 0:01:18.7]} 18... Rfd8 {[%clk 0:00:46.6]} 19. Rf2 {[%clk
0:00:59.2]} 19... Qa5 {[%clk 0:00:46.5]} 20. Qxa5 {[%clk 0:00:56.2]} 20... Nxa5
{[%clk 0:00:47.4]} 21. Rb2 {[%clk 0:00:48.2]} 21... b6 {[%clk 0:00:46.4]} 22.
Kf2 {[%clk 0:00:45.6]} 22... Rac8 {[%clk 0:00:46.3]} 23. Rc1 {[%clk 0:00:40.8]}
23... Be7 {[%clk 0:00:43.5]} 24. Rbc2 {[%clk 0:00:35.1]} 24... Bb7 {[%clk
0:00:36]} 25. Rxc8 {[%clk 0:00:30.3]} 25... Rxc8 {[%clk 0:00:36.9]} 26. Rxc8+
{[%clk 0:00:29]} 26... Bxc8 {[%clk 0:00:37.8]} 27. d5 {[%clk 0:00:27]} 27... Bb7
{[%clk 0:00:34.4]} 28. Be4 {[%clk 0:00:25.9]} 28... Bd6 {[%clk 0:00:24.5]} 29.
Bd4 {[%clk 0:00:14.9]} 29... f5 {[%clk 0:00:20.1]} 30. Bf3 {[%clk 0:00:11.1]}
30... g6 {[%clk 0:00:19.4]} 31. Ke3 {[%clk 0:00:11.1]} 31... Kf8 {[%clk
0:00:17.6]} 32. g4 {[%clk 0:00:08.6]} 32... fxg4 {[%clk 0:00:15.8]} 33. hxg4
{[%clk 0:00:08.8]} 33... Ke7 {[%clk 0:00:16.4]} 34. g5 {[%clk 0:00:08.8]} 34...
Ba6 {[%clk 0:00:13]} 35. Bg4 {[%clk 0:00:05.9]} 35... Nc4+ {[%clk 0:00:12]} 36.
Nxc4 {[%clk 0:00:05.7]} 36... Bxc4 {[%clk 0:00:12.9]} 37. Ke4 {[%clk 0:00:05.9]}
37... Bxa2 {[%clk 0:00:13]} 38. Be6 {[%clk 0:00:05.5]} 38... Bc5 {[%clk
0:00:09.4]} 39. Bg8 {[%clk 0:00:04.3]} 39... Bb1+ {[%clk 0:00:06.3]} 40. Ke5
{[%clk 0:00:04.1]} 40... Bd6# {[%clk 0:00:06]} 0-1

[Event "Late-Titled-Tuesday-Blitz-March-26-2024"]
[Site "Chess.com"]
[Date "2024.03.26"]
[Round "10"]
[White "Boninknights"]
[Black "VD_coach"]
[Result "0-1"]
[WhiteElo "2389"]
[BlackElo "2508"]
[TimeControl "180+1"]
[EndTime "15:54:51 PDT"]
[Termination "VD_coach won by resignation"]

1. b3 {[%clk 0:02:59.8]} 1... Nf6 {[%clk 0:02:56.9]} 2. Bb2 {[%clk 0:02:59.4]}
2... g6 {[%clk 0:02:57.8]} 3. Bxf6 {[%clk 0:02:59]} 3... exf6 {[%clk 0:02:58.7]}
4. c4 {[%clk 0:02:58.9]} 4... Bg7 {[%clk 0:02:58.5]} 5. Nc3 {[%clk 0:02:58.7]}
5... O-O {[%clk 0:02:58.5]} 6. g3 {[%clk 0:02:57.4]} 6... d6 {[%clk 0:02:57.5]}
7. Bg2 {[%clk 0:02:55.8]} 7... f5 {[%clk 0:02:56.6]} 8. Rc1 {[%clk 0:02:54.4]}
8... Nc6 {[%clk 0:02:56.3]} 9. e3 {[%clk 0:02:53.5]} 9... Re8 {[%clk 0:02:56.6]}
10. Nge2 {[%clk 0:02:52.2]} 10... h5 {[%clk 0:02:56.4]} 11. O-O {[%clk
0:02:48.1]} 11... h4 {[%clk 0:02:55.7]} 12. d4 {[%clk 0:02:43.1]} 12... hxg3
{[%clk 0:02:54.2]} 13. hxg3 {[%clk 0:02:41.8]} 13... Bd7 {[%clk 0:02:53.8]} 14.
Nd5 {[%clk 0:02:39.3]} 14... Rb8 {[%clk 0:02:50]} 15. b4 {[%clk 0:02:37.8]}
15... Ne7 {[%clk 0:02:46.4]} 16. Nxe7+ {[%clk 0:02:33]} 16... Qxe7 {[%clk
0:02:45.5]} 17. Nf4 {[%clk 0:02:18.2]} 17... c6 {[%clk 0:02:34.3]} 18. a4 {[%clk
0:02:16.5]} 18... Bh6 {[%clk 0:02:32.3]} 19. b5 {[%clk 0:02:12.2]} 19... Qf6
{[%clk 0:01:53.2]} 20. Rb1 {[%clk 0:02:02.2]} 20... Kg7 {[%clk 0:01:28.3]} 21.
Qd2 {[%clk 0:01:54.2]} 21... Kg8 {[%clk 0:01:10.2]} 22. Qa5 {[%clk 0:01:48.6]}
22... Bxf4 {[%clk 0:01:06.9]} 23. gxf4 {[%clk 0:01:46]} 23... g5 {[%clk
0:01:05]} 24. fxg5 {[%clk 0:01:38.5]} 24... Qxg5 {[%clk 0:01:04.8]} 25. Qc7
{[%clk 0:01:34.8]} 25... Rbd8 {[%clk 0:00:38.3]} 26. Qxd6 {[%clk 0:01:29]} 26...
cxb5 {[%clk 0:00:38.2]} 27. axb5 {[%clk 0:01:23.3]} 27... Bxb5 {[%clk 0:00:38]}
28. Qh2 {[%clk 0:01:13.8]} 28... Bxc4 {[%clk 0:00:31.4]} 29. Rfc1 {[%clk
0:01:01.2]} 29... Bd5 {[%clk 0:00:30.3]} 30. Rc5 {[%clk 0:00:50]} 30... Qxg2+
{[%clk 0:00:18.8]} 31. Qxg2+ {[%clk 0:00:46.9]} 31... Bxg2 {[%clk 0:00:19.7]}
32. Kxg2 {[%clk 0:00:46.5]} 32... f4 {[%clk 0:00:20.6]} 33. Rxb7 {[%clk
0:00:30.3]} 33... fxe3 {[%clk 0:00:20.1]} 34. Rcc7 {[%clk 0:00:27]} 34... e2
{[%clk 0:00:11.9]} 35. Rxf7 {[%clk 0:00:26.1]} 35... Re6 {[%clk 0:00:11.3]} 36.
Rg7+ {[%clk 0:00:22.5]} 36... Kf8 {[%clk 0:00:11.4]} 37. d5 {[%clk 0:00:13]}
37... e1=Q {[%clk 0:00:10.4]} 38. dxe6 {[%clk 0:00:11.1]} 38... Qe4+ {[%clk
0:00:10.7]} 39. Kg3 {[%clk 0:00:09.6]} 39... Qe5+ {[%clk 0:00:10.4]} 40. Kg4
{[%clk 0:00:07.2]} 40... Qxe6+ {[%clk 0:00:10.5]} 41. Kg5 {[%clk 0:00:05.5]}
41... Qe5+ {[%clk 0:00:09.9]} 42. Kg6 {[%clk 0:00:04.8]} 42... Rd6+ {[%clk
0:00:10.1]} 0-1

[Event "Late-Titled-Tuesday-Blitz-March-26-2024"]
[Site "Chess.com"]
[Date "2024.03.26"]
[Round "10"]
[White "GlavkonVVS"]
[Black "DishonorOnYourCow"]
[Result "1-0"]
[WhiteElo "2656"]
[BlackElo "2542"]
[TimeControl "180+1"]
[EndTime "15:54:53 PDT"]
[Termination "GlavkonVVS won on time"]

1. c4 {[%clk 0:03:00.9]} 1... e5 {[%clk 0:02:59.3]} 2. Nc3 {[%clk 0:03:01.1]}
2... Nc6 {[%clk 0:02:59.5]} 3. g3 {[%clk 0:03:00.8]} 3... Nf6 {[%clk 0:02:58.4]}
4. Bg2 {[%clk 0:03:01.1]} 4... Bc5 {[%clk 0:02:59.1]} 5. e3 {[%clk 0:03:01.1]}
5... d6 {[%clk 0:02:59.5]} 6. Nge2 {[%clk 0:03:01.7]} 6... a6 {[%clk 0:02:59.8]}
7. d4 {[%clk 0:03:01.7]} 7... exd4 {[%clk 0:02:59.5]} 8. exd4 {[%clk 0:03:02.3]}
8... Ba7 {[%clk 0:02:59.3]} 9. O-O {[%clk 0:03:01.7]} 9... O-O {[%clk
0:02:59.2]} 10. h3 {[%clk 0:03:01.9]} 10... h6 {[%clk 0:02:59.2]} 11. g4 {[%clk
0:02:58.2]} 11... Ne7 {[%clk 0:02:35.5]} 12. Nf4 {[%clk 0:02:49.5]} 12... Ng6
{[%clk 0:02:27]} 13. Qd3 {[%clk 0:02:40.5]} 13... Nxf4 {[%clk 0:02:21.4]} 14.
Bxf4 {[%clk 0:02:40.3]} 14... Rb8 {[%clk 0:02:17.2]} 15. Rad1 {[%clk 0:02:33.6]}
15... b5 {[%clk 0:02:16.7]} 16. cxb5 {[%clk 0:02:30.1]} 16... axb5 {[%clk
0:02:16.7]} 17. Rfe1 {[%clk 0:02:08]} 17... b4 {[%clk 0:02:14.5]} 18. Nd5 {[%clk
0:02:04.7]} 18... Nxd5 {[%clk 0:02:12.2]} 19. Bxd5 {[%clk 0:02:04.6]} 19... Bb7
{[%clk 0:02:11.1]} 20. Bb3 {[%clk 0:01:55]} 20... Qd7 {[%clk 0:02:06.1]} 21.
Bxh6 {[%clk 0:01:24.4]} 21... gxh6 {[%clk 0:01:49.4]} 22. Qg6+ {[%clk
0:01:24.1]} 22... Kh8 {[%clk 0:01:47.9]} 23. Qxh6+ {[%clk 0:01:24.6]} 23... Kg8
{[%clk 0:01:48.4]} 24. Qg6+ {[%clk 0:01:24.4]} 24... Kh8 {[%clk 0:01:48.7]} 25.
Qf6+ {[%clk 0:01:24.9]} 25... Kg8 {[%clk 0:01:47]} 26. Re7 {[%clk 0:01:24.8]}
26... Qxe7 {[%clk 0:00:53]} 27. Qxe7 {[%clk 0:01:24.4]} 27... Rbe8 {[%clk
0:00:49.6]} 28. Qxc7 {[%clk 0:01:17.9]} 28... Bf3 {[%clk 0:00:49.4]} 29. Rd3
{[%clk 0:00:59.3]} 29... Re1+ {[%clk 0:00:38.8]} 30. Kh2 {[%clk 0:00:59.3]}
30... Bb8 {[%clk 0:00:38.6]} 31. Qxb8 {[%clk 0:00:47.5]} 31... Rxb8 {[%clk
0:00:37]} 32. Rxf3 {[%clk 0:00:47.7]} 32... Rb7 {[%clk 0:00:35.5]} 33. g5 {[%clk
0:00:44.8]} 33... Kg7 {[%clk 0:00:35.6]} 34. h4 {[%clk 0:00:44.3]} 34... Re2
{[%clk 0:00:34.9]} 35. h5 {[%clk 0:00:41.3]} 35... Rxb2 {[%clk 0:00:29.9]} 36.
Kg3 {[%clk 0:00:41]} 36... Rd2 {[%clk 0:00:20.5]} 37. Rf4 {[%clk 0:00:39.2]}
37... Rd3+ {[%clk 0:00:15.7]} 38. Kg4 {[%clk 0:00:39.4]} 38... Rc7 {[%clk
0:00:12.8]} 39. h6+ {[%clk 0:00:38.2]} 39... Kg8 {[%clk 0:00:10.8]} 40. g6
{[%clk 0:00:36.7]} 40... Rxb3 {[%clk 0:00:07.5]} 41. axb3 {[%clk 0:00:31]} 41...
fxg6 {[%clk 0:00:07.2]} 42. Rf6 {[%clk 0:00:31.2]} 42... Rc3 {[%clk 0:00:04.6]}
43. Rxg6+ {[%clk 0:00:29.8]} 43... Kh7 {[%clk 0:00:04.6]} 44. Rxd6 {[%clk
0:00:30.2]} 44... Rxb3 {[%clk 0:00:04.9]} 45. Rb6 {[%clk 0:00:29]} 45... Rb2
{[%clk 0:00:03.5]} 46. f4 {[%clk 0:00:28.7]} 46... b3 {[%clk 0:00:04.1]} 47. Kf5
{[%clk 0:00:25.5]} 47... Rd2 {[%clk 0:00:02.8]} 48. Ke4 {[%clk 0:00:20.3]} 48...
b2 {[%clk 0:00:02.6]} 49. Ke3 {[%clk 0:00:20.4]} 49... Rh2 {[%clk 0:00:02.1]}
50. d5 {[%clk 0:00:19.4]} 50... Kg8 {[%clk 0:00:01.8]} 51. Ke4 {[%clk
0:00:19.2]} 51... Kf7 {[%clk 0:00:02]} 52. Ke5 {[%clk 0:00:17.4]} 1-0

[Event "Late-Titled-Tuesday-Blitz-March-26-2024"]
[Site "Chess.com"]
[Date "2024.03.26"]
[Round "10"]
[White "hansen"]
[Black "Firouzja2003"]
[Result "0-1"]
[WhiteElo "2983"]
[BlackElo "3128"]
[TimeControl "180+1"]
[EndTime "15:54:54 PDT"]
[Termination "Firouzja2003 won by checkmate"]

1. e4 {[%clk 0:03:00.9]} 1... c5 {[%clk 0:02:59.3]} 2. Nf3 {[%clk 0:03:01.1]}
2... d6 {[%clk 0:02:59.9]} 3. c3 {[%clk 0:02:58]} 3... Nf6 {[%clk 0:02:59.3]} 4.
Be2 {[%clk 0:02:58.5]} 4... Bd7 {[%clk 0:02:48.2]} 5. d3 {[%clk 0:02:56]} 5...
Nc6 {[%clk 0:02:46]} 6. O-O {[%clk 0:02:55.5]} 6... g6 {[%clk 0:02:46.2]} 7. Re1
{[%clk 0:02:54.2]} 7... Bg7 {[%clk 0:02:46.3]} 8. Bf1 {[%clk 0:02:53.7]} 8...
O-O {[%clk 0:02:46.5]} 9. h3 {[%clk 0:02:51.9]} 9... Rc8 {[%clk 0:02:38]} 10. d4
{[%clk 0:02:50.8]} 10... cxd4 {[%clk 0:02:37.3]} 11. cxd4 {[%clk 0:02:51.3]}
11... d5 {[%clk 0:02:38]} 12. e5 {[%clk 0:02:41.2]} 12... Ne4 {[%clk 0:02:38.4]}
13. Nbd2 {[%clk 0:02:41.8]} 13... Bf5 {[%clk 0:02:33.5]} 14. a3 {[%clk
0:02:29.6]} 14... Qb6 {[%clk 0:02:26.6]} 15. Qa4 {[%clk 0:01:55.1]} 15... Nxd2
{[%clk 0:02:13.6]} 16. Bxd2 {[%clk 0:01:55.2]} 16... Be4 {[%clk 0:02:14.4]} 17.
Bc3 {[%clk 0:01:35.6]} 17... Bxf3 {[%clk 0:02:11.2]} 18. gxf3 {[%clk 0:01:36.5]}
18... e6 {[%clk 0:02:11.8]} 19. Kg2 {[%clk 0:01:25.3]} 19... Bh6 {[%clk
0:02:09.9]} 20. Qb5 {[%clk 0:01:21.3]} 20... Qd8 {[%clk 0:02:04.4]} 21. Qd3
{[%clk 0:01:13.3]} 21... Qg5+ {[%clk 0:01:50.9]} 22. Kh1 {[%clk 0:01:10.6]}
22... Qh4 {[%clk 0:01:51.8]} 23. Kg1 {[%clk 0:00:59.1]} 23... Ne7 {[%clk
0:01:48.7]} 24. f4 {[%clk 0:00:40.7]} 24... Qxf4 {[%clk 0:01:33.5]} 25. Rad1
{[%clk 0:00:39.2]} 25... Nf5 {[%clk 0:01:32]} 26. Bg2 {[%clk 0:00:33]} 26... Qh4
{[%clk 0:01:14.8]} 27. Qf3 {[%clk 0:00:29.9]} 27... Bg5 {[%clk 0:01:06]} 28. Bf1
{[%clk 0:00:26.5]} 28... Qf4 {[%clk 0:00:50.7]} 29. Qxf4 {[%clk 0:00:20.4]}
29... Bxf4 {[%clk 0:00:51.6]} 30. Bd3 {[%clk 0:00:20.9]} 30... Nh4 {[%clk
0:00:48.6]} 31. Kf1 {[%clk 0:00:17.7]} 31... Rc6 {[%clk 0:00:43.4]} 32. Re2
{[%clk 0:00:17.1]} 32... Rfc8 {[%clk 0:00:43.2]} 33. Bb5 {[%clk 0:00:14.4]}
33... R6c7 {[%clk 0:00:42.6]} 34. Rd3 {[%clk 0:00:09.3]} 34... g5 {[%clk
0:00:41.2]} 35. Ke1 {[%clk 0:00:05.9]} 35... Kg7 {[%clk 0:00:39.8]} 36. Kd1
{[%clk 0:00:06.3]} 36... Nf5 {[%clk 0:00:38.4]} 37. Ba4 {[%clk 0:00:05.8]} 37...
a6 {[%clk 0:00:35.7]} 38. Bb3 {[%clk 0:00:04.6]} 38... b5 {[%clk 0:00:35.4]} 39.
Rc2 {[%clk 0:00:03]} 39... Rc6 {[%clk 0:00:32.5]} 40. Rf3 {[%clk 0:00:01.4]}
40... h5 {[%clk 0:00:30.8]} 41. Rd3 {[%clk 0:00:01.4]} 41... g4 {[%clk
0:00:29.1]} 42. hxg4 {[%clk 0:00:01.4]} 42... hxg4 {[%clk 0:00:30]} 43. Bb4
{[%clk 0:00:01.4]} 43... Rxc2 {[%clk 0:00:22.9]} 44. Bxc2 {[%clk 0:00:02.3]}
44... Rh8 {[%clk 0:00:23.1]} 45. Bc3 {[%clk 0:00:01.8]} 45... Rh2 {[%clk
0:00:20.5]} 46. Ke1 {[%clk 0:00:01.2]} 46... g3 {[%clk 0:00:19.8]} 47. fxg3
{[%clk 0:00:02.1]} 47... Bxg3+ {[%clk 0:00:17.9]} 48. Kd1 {[%clk 0:00:02.7]}
48... Bf4 {[%clk 0:00:18.5]} 49. Bb3 {[%clk 0:00:01.9]} 49... Ne3+ {[%clk
0:00:18.2]} 50. Ke1 {[%clk 0:00:02.5]} 50... Bg3# {[%clk 0:00:18.4]} 0-1

[Event "Late-Titled-Tuesday-Blitz-March-26-2024"]
[Site "Chess.com"]
[Date "2024.03.26"]
[Round "10"]
[White "titomagno_64"]
[Black "ural58"]
[Result "0-1"]
[WhiteElo "2294"]
[BlackElo "2453"]
[TimeControl "180+1"]
[EndTime "15:54:59 PDT"]
[Termination "ural58 won on time"]

1. d4 {[%clk 0:02:56.3]} 1... d5 {[%clk 0:02:59]} 2. c4 {[%clk 0:02:57]} 2... e5
{[%clk 0:02:36.8]} 3. dxe5 {[%clk 0:02:56.1]} 3... d4 {[%clk 0:02:36.5]} 4. Nf3
{[%clk 0:02:56.3]} 4... Nc6 {[%clk 0:02:36.2]} 5. a3 {[%clk 0:02:56.8]} 5... g6
{[%clk 0:02:33.9]} 6. Qa4 {[%clk 0:02:47.9]} 6... Qd7 {[%clk 0:02:23.2]} 7. b4
{[%clk 0:02:29.9]} 7... Bg7 {[%clk 0:02:17.6]} 8. Bb2 {[%clk 0:02:29.7]} 8...
Nxe5 {[%clk 0:02:15.8]} 9. Qxd7+ {[%clk 0:02:27.8]} 9... Bxd7 {[%clk 0:02:16.3]}
10. Nxe5 {[%clk 0:02:18.1]} 10... Bxe5 {[%clk 0:02:15.4]} 11. e3 {[%clk
0:02:18.7]} 11... O-O-O {[%clk 0:02:02]} 12. exd4 {[%clk 0:02:16.7]} 12... Bf6
{[%clk 0:01:57.1]} 13. Be2 {[%clk 0:01:51.4]} 13... Bf5 {[%clk 0:01:34.6]} 14.
O-O {[%clk 0:01:27]} 14... Bxd4 {[%clk 0:01:33.3]} 15. Bxd4 {[%clk 0:01:27.7]}
15... Rxd4 {[%clk 0:01:32.7]} 16. Nc3 {[%clk 0:01:23.8]} 16... Nf6 {[%clk
0:01:32.3]} 17. Nb5 {[%clk 0:01:05]} 17... Rd2 {[%clk 0:01:31.4]} 18. Bf3 {[%clk
0:01:05.6]} 18... a6 {[%clk 0:01:29.6]} 19. Nc3 {[%clk 0:01:04.6]} 19... Rhd8
{[%clk 0:01:27.9]} 20. Nd5 {[%clk 0:01:00.3]} 20... Nxd5 {[%clk 0:01:12.4]} 21.
Bxd5 {[%clk 0:01:01.2]} 21... Be6 {[%clk 0:01:10.4]} 22. Bxe6+ {[%clk
0:00:57.8]} 22... fxe6 {[%clk 0:01:11.3]} 23. Rae1 {[%clk 0:00:50.6]} 23... Kd7
{[%clk 0:01:09.5]} 24. Re3 {[%clk 0:00:43.2]} 24... Rf8 {[%clk 0:00:45.7]} 25.
g3 {[%clk 0:00:27.9]} 25... Rd4 {[%clk 0:00:36.5]} 26. Rc1 {[%clk 0:00:26]}
26... g5 {[%clk 0:00:33.6]} 27. Rcc3 {[%clk 0:00:21.4]} 27... c5 {[%clk
0:00:25.6]} 28. Rcd3 {[%clk 0:00:18.9]} 28... Rxd3 {[%clk 0:00:18]} 29. Rxd3+
{[%clk 0:00:19.8]} 29... Kc6 {[%clk 0:00:18.1]} 30. Re3 {[%clk 0:00:20.4]} 30...
Rf6 {[%clk 0:00:18.1]} 31. Re5 {[%clk 0:00:20.4]} 31... cxb4 {[%clk 0:00:18.4]}
32. axb4 {[%clk 0:00:21.3]} 32... h6 {[%clk 0:00:18.5]} 33. Kf1 {[%clk
0:00:18.3]} 33... Kd6 {[%clk 0:00:18.1]} 34. Re4 {[%clk 0:00:15.8]} 34... Rf5
{[%clk 0:00:17.8]} 35. Ke2 {[%clk 0:00:15.9]} 35... a5 {[%clk 0:00:18.1]} 36.
bxa5 {[%clk 0:00:15.7]} 36... Rxa5 {[%clk 0:00:17.9]} 37. Rd4+ {[%clk
0:00:15.4]} 37... Ke5 {[%clk 0:00:16.6]} 38. Rd7 {[%clk 0:00:15.7]} 38... Ra2+
{[%clk 0:00:16.7]} 39. Kf3 {[%clk 0:00:16.1]} 39... Rb2 {[%clk 0:00:16.4]} 40.
Rh7 {[%clk 0:00:15.2]} 40... Rb4 {[%clk 0:00:15.8]} 41. c5 {[%clk 0:00:13.8]}
41... g4+ {[%clk 0:00:15.2]} 42. Kg2 {[%clk 0:00:13.6]} 42... Rb5 {[%clk
0:00:15.3]} 43. Rc7 {[%clk 0:00:09.4]} 43... Kd5 {[%clk 0:00:15.1]} 44. Rg7
{[%clk 0:00:08.9]} 44... Rxc5 {[%clk 0:00:13.5]} 45. Rxg4 {[%clk 0:00:09.2]}
45... b5 {[%clk 0:00:14.1]} 46. Rg8 {[%clk 0:00:07.3]} 46... b4 {[%clk
0:00:13.8]} 47. Rb8 {[%clk 0:00:06.1]} 47... Kc4 {[%clk 0:00:13.7]} 48. h4
{[%clk 0:00:04.9]} 48... b3 {[%clk 0:00:13.9]} 49. g4 {[%clk 0:00:03.9]} 49...
Rb5 {[%clk 0:00:14]} 50. Rc8+ {[%clk 0:00:04.3]} 50... Kd5 {[%clk 0:00:14.1]}
51. Rd8+ {[%clk 0:00:02.9]} 51... Ke5 {[%clk 0:00:13.6]} 0-1

[Event "Late-Titled-Tuesday-Blitz-March-26-2024"]
[Site "Chess.com"]
[Date "2024.03.26"]
[Round "10"]
[White "CFalcons8"]
[Black "ACollins05"]
[Result "1-0"]
[WhiteElo "2421"]
[BlackElo "2506"]
[TimeControl "180+1"]
[EndTime "15:55:05 PDT"]
[Termination "CFalcons8 won by resignation"]

1. d4 {[%clk 0:02:58.7]} 1... b5 {[%clk 0:03:00.3]} 2. e4 {[%clk 0:02:52]} 2...
a6 {[%clk 0:02:59.8]} 3. a4 {[%clk 0:02:51.6]} 3... b4 {[%clk 0:02:57.1]} 4. Bc4
{[%clk 0:02:48.7]} 4... Bb7 {[%clk 0:02:53.9]} 5. f3 {[%clk 0:02:40.5]} 5... e6
{[%clk 0:02:53]} 6. Be3 {[%clk 0:02:12.6]} 6... Nf6 {[%clk 0:02:48.3]} 7. c3
{[%clk 0:02:02.8]} 7... d5 {[%clk 0:02:47.6]} 8. exd5 {[%clk 0:01:54.3]} 8...
Nxd5 {[%clk 0:02:48.5]} 9. Bxd5 {[%clk 0:01:48.8]} 9... Qxd5 {[%clk 0:02:47.8]}
10. Ne2 {[%clk 0:01:49.7]} 10... Be7 {[%clk 0:02:44.6]} 11. O-O {[%clk
0:01:50.1]} 11... O-O {[%clk 0:02:44.9]} 12. b3 {[%clk 0:01:45.9]} 12... bxc3
{[%clk 0:02:43.7]} 13. Nbxc3 {[%clk 0:01:44.4]} 13... Qd7 {[%clk 0:02:44.3]} 14.
Qd3 {[%clk 0:01:41.5]} 14... Nc6 {[%clk 0:02:39.7]} 15. Ne4 {[%clk 0:01:40.1]}
15... Nb4 {[%clk 0:02:37.2]} 16. Qd2 {[%clk 0:01:38.9]} 16... Nd5 {[%clk
0:02:35.3]} 17. Bf2 {[%clk 0:01:39.5]} 17... Rfd8 {[%clk 0:02:27.9]} 18. Rac1
{[%clk 0:01:37.3]} 18... Rac8 {[%clk 0:02:26.1]} 19. Nc5 {[%clk 0:01:24.4]}
19... Bxc5 {[%clk 0:02:25]} 20. Rxc5 {[%clk 0:01:25.3]} 20... Ne7 {[%clk
0:02:17.6]} 21. Rfc1 {[%clk 0:01:18.6]} 21... Bd5 {[%clk 0:02:08.7]} 22. Qd3
{[%clk 0:01:14.4]} 22... c6 {[%clk 0:01:55.1]} 23. b4 {[%clk 0:01:07.2]} 23...
Rb8 {[%clk 0:01:54.2]} 24. Rb1 {[%clk 0:01:03.5]} 24... Qa7 {[%clk 0:01:51.3]}
25. Ra5 {[%clk 0:01:01.4]} 25... Rb6 {[%clk 0:01:50.3]} 26. b5 {[%clk
0:00:53.7]} 26... Rdb8 {[%clk 0:01:49.5]} 27. Nc3 {[%clk 0:00:51.1]} 27... cxb5
{[%clk 0:01:47.4]} 28. axb5 {[%clk 0:00:49.5]} 28... h6 {[%clk 0:01:24.5]} 29.
Rba1 {[%clk 0:00:31]} 29... Rc8 {[%clk 0:01:07.6]} 30. Rxa6 {[%clk 0:00:29.2]}
30... Rxa6 {[%clk 0:01:05]} 31. bxa6 {[%clk 0:00:30.1]} 31... Bc4 {[%clk
0:01:04.7]} 32. Qd2 {[%clk 0:00:18.2]} 32... Nd5 {[%clk 0:01:01.6]} 33. Ne4
{[%clk 0:00:17.7]} 33... Rb8 {[%clk 0:00:32.7]} 34. Nc5 {[%clk 0:00:17.2]} 34...
Rb4 {[%clk 0:00:29.1]} 35. Qc2 {[%clk 0:00:11.7]} 35... Bb5 {[%clk 0:00:23.1]}
36. Qd2 {[%clk 0:00:09.4]} 36... Bc4 {[%clk 0:00:20.7]} 37. Qc2 {[%clk
0:00:09.7]} 37... Bb5 {[%clk 0:00:20.9]} 38. g3 {[%clk 0:00:08.2]} 38... Bc4
{[%clk 0:00:19.1]} 39. Ra4 {[%clk 0:00:07.8]} 39... Rxa4 {[%clk 0:00:15.8]} 40.
Qxa4 {[%clk 0:00:08.7]} 40... Be2 {[%clk 0:00:13.6]} 41. Kg2 {[%clk 0:00:08.1]}
41... Nc7 {[%clk 0:00:12.3]} 42. Qd7 {[%clk 0:00:06.5]} 42... Qa8 {[%clk
0:00:10]} 43. Qxc7 {[%clk 0:00:04.2]} 43... Qxf3+ {[%clk 0:00:09.9]} 44. Kg1
{[%clk 0:00:05]} 44... Bb5 {[%clk 0:00:07.6]} 45. Qb8+ {[%clk 0:00:05.3]} 45...
Kh7 {[%clk 0:00:06.9]} 46. Qxb5 {[%clk 0:00:06.2]} 46... Qd1+ {[%clk 0:00:06.5]}
47. Qf1 {[%clk 0:00:07.1]} 47... Qc2 {[%clk 0:00:05.8]} 48. Qd3+ {[%clk
0:00:07.9]} 48... Qxd3 {[%clk 0:00:05.6]} 49. Nxd3 {[%clk 0:00:08.8]} 1-0